bitfinex/quotes_ETHUSD_20220202
["timestamp","ask_amount","ask_price","bid_price","bid_amount"]
[1643768613012,0.84091288,2773.5,2772.7,2.38003706]
[1643768613207,0.84091288,2773.5,2772.8,0.66669396]
[1643768614411,0.38848652,2773.2,2772.9,0.36712283]
[1643768614609,0.38848652,2773.2,2773.0,0.66669396]
[1643768614809,0.3,2773.6,2773.0,0.66669396]
[1643768615017,0.84508898,2773.5,2773.0,0.66669396]
[1643768615314,1.14508898,2773.4,2773.0,0.66669396]
[1643768615519,0.84508898,2773.3,2773.0,0.66669396]
[1643768615916,1.16599776,2773.3,2773.0,0.66669396]
[1643768616161,0.84521561,2773.2,2773.0,0.66669396]
[1643768616359,0.84524513,2773.1,2773.0,0.66669396]
[1643768616560,0.32090878,2773.3,2773.0,0.66669396]
[1643768616759,0.84524162,2773.2,2773.0,0.66669396]
[1643768617159,0.32090878,2773.3,2773.0,0.66669396]
[1643768617560,0.84529214,2773.2,2773.0,0.66669396]
[1643768617760,0.32090878,2773.3,2773.0,0.66669396]
[1643768618162,0.845385,2773.2,2773.0,0.66669396]
[1643768618363,0.8454353,2773.1,2773.0,0.66669396]
[1643768618561,0.84543637,2773.1,2773.0,0.66669396]
[1643768618867,0.84543082,2773.1,2773.0,0.66669396]
[1643768619060,0.84543101,2773.2,2773.0,0.66669396]
[1643768619261,0.84545171,2773.1,2773.0,0.66669396]
[1643768619463,0.84967629,2773.1,2773.0,0.66669396]
[1643768619663,0.84968929,2773.2,2773.0,0.66669396]
[1643768619916,0.3,2773.4,2773.0,0.66669396]
[1643768620315,0.84968297,2773.3,2773.0,0.66669396]
[1643768620520,0.09644,2773.6,2773.0,0.66669396]
[1643768620717,0.84983242,2773.5,2773.0,0.66669396]
[1643768621014,0.38372934,2773.3,2773.0,0.66669396]
[1643768621422,0.38372934,2773.3,2773.1,0.66669396]
[1643768621617,0.09644,2773.6,2773.2,0.66669396]
[1643768621816,0.84997755,2773.5,2773.3,0.66669396]
[1643768622017,0.84997755,2773.5,2773.4,0.66669396]
[1643768622217,1.14997755,2773.5,2773.4,0.66669396]
[1643768622417,1.14997755,2773.5,2773.0,0.66669396]
[1643768622622,0.40949931,2773.4,2773.1,0.66669396]
[1643768622824,0.84999524,2773.3,2773.2,0.66669396]
[1643768623024,0.85010887,2773.3,2773.0,0.66669396]
[1643768623225,1.43497845,2773.7,2773.0,0.66669396]
[1643768623226,1.88180527,2774.3,2773.7,1.6259538]
[1643768623588,0.94189039,2775.1,2773.7,1.6259538]
[1643768623589,2.25845412,2775.3,2774.2,7.23851042]
[1643768623786,0.72202418,2775.2,2774.6,0.0121197]
[1643768623995,5.6178,2776.6,2774.6,0.0121197]
[1643768623996,1.36902371,2776.4,2775.1,0.01226962]
[1643768624184,1.36902371,2776.4,2775.2,2.00739774]
[1643768624388,1.80687726,2776.7,2775.3,2.72110309]
[1643768624389,1.36902371,2776.7,2775.3,2.72110309]
[1643768624586,1.80687726,2777.1,2775.7,6.5]
[1643768624786,0.1,2777.8,2776.4,3.95]
[1643768624787,1.80687726,2777.3,2776.4,3.95]
[1643768624995,0.1,2777.8,2776.4,3.95]
[1643768624996,1.90687726,2777.8,2776.6,6.5]
[1643768625191,0.1,2777.8,2777.7,0.72782328]
[1643768625387,0.1,2777.8,2777.6,0.44262107]
[1643768625789,0.1,2777.8,2777.5,0.1799]
[1643768625988,0.1,2777.8,2777.3,0.13720207]
[1643768626187,0.1,2777.8,2777.1,0.18515783]
[1643768626496,0.88755907,2777.4,2777.1,0.18515783]
[1643768626788,0.34469559,2777.3,2777.1,0.1799]
[1643768626987,0.38748559,2777.3,2777.1,0.1799]
[1643768627817,0.68748559,2777.3,2777.1,0.1799]
[1643768628013,0.38748559,2777.3,2777.1,0.1799]
[1643768629020,0.34469559,2777.3,2777.1,0.1799]
[1643768629615,0.38748559,2777.3,2777.1,0.1799]
[1643768630719,0.68748559,2777.3,2777.1,0.1799]
[1643768631155,21.23,2777.2,2777.1,0.1799]
[1643768631356,22.27277,2777.2,2776.1,0.00411399]
[1643768631565,1.56676999,2777.1,2776.1,0.00411399]
[1643768631755,2.86676999,2777.1,2776.1,0.00411399]
[1643768631955,0.8778177,2776.2,2776.1,0.00411399]
[1643768633357,0.8778177,2776.2,2775.4,7.4559]
[1643768633559,0.8778177,2776.2,2775.4,7.2059]
[1643768633756,1.1778177,2776.2,2775.4,7.2059]
[1643768634358,0.90975399,2775.5,2775.4,7.2059]
[1643768634557,1.29286248,2775.5,2775.4,7.2059]
[1643768634809,0.38310849,2775.5,2775.4,7.2059]
[1643768636817,0.38310849,2775.5,2775.4,7.5059]
[1643768637611,0.38310849,2775.5,2775.4,7.2059]
[1643768638662,2.1245033,2776.6,2775.4,7.2059]
[1643768638864,0.04283,2776.6,2775.4,7.2059]
[1643768639065,0.04279,2776.8,2775.4,7.386]
[1643768639470,2.13049858,2776.8,2775.4,7.386]
[1643768639873,0.88836194,2775.8,2775.4,7.386]
[1643768640086,0.88836194,2775.8,2775.4,7.2059]
[1643768640868,0.41460979,2775.7,2775.4,7.2059]
[1643768646160,0.41342324,2775.7,2775.4,7.2059]
[1643768647164,1.0,2777.0,2775.5,2.00473186]
[1643768647165,0.04279,2776.6,2775.5,2.00473186]
[1643768647369,0.524,2777.0,2775.5,2.00473186]
[1643768647370,0.04283,2776.7,2775.5,2.00473186]
[1643768647563,0.04286,2776.8,2775.5,2.00473186]
[1643768648169,0.4031897,2775.9,2775.4,7.5059]
[1643768648569,0.4031897,2775.9,2775.4,7.2059]
[1643768648771,0.4031897,2775.9,2775.4,7.1559]
[1643768649371,0.93560574,2775.8,2775.4,7.1559]
[1643768649574,0.04265,2775.7,2775.5,2.0]
[1643768649822,0.04256,2776.1,2775.4,7.1559]
[1643768650028,0.04247,2777.0,2775.5,0.1799]
[1643768650418,1.1907,2777.2,2775.5,0.1799]
[1643768650419,0.90881654,2776.1,2775.5,0.1799]
[1643768650620,0.44093745,2776.0,2775.5,0.1799]
[1643768653024,0.44093745,2776.0,2775.5,0.60346363]
[1643768653225,0.44093745,2776.0,2775.5,2.60268359]
[1643768653657,0.44093745,2776.0,2775.5,0.60346363]
[1643768653860,0.04319,2776.9,2775.5,0.60346363]
[1643768654061,0.04319,2776.9,2775.5,2.30407012]
[1643768654260,0.82135397,2776.7,2775.6,5.75507319]
[1643768654461,0.82135397,2776.7,2775.9,0.90054]
[1643768654863,0.82135397,2776.7,2775.9,1.20054]
[1643768655062,0.4090847,2776.0,2775.9,1.20054]
[1643768655662,0.82135397,2776.7,2775.9,0.90054]
[1643768656264,0.82135397,2776.7,2775.7,0.1801]
[1643768657519,0.82135397,2776.7,2775.8,0.90056]
[1643768657719,0.82135397,2776.7,2775.9,0.1799]
[1643768658117,0.39168262,2776.2,2775.9,0.1799]
[1643768659119,0.39168262,2776.2,2775.8,0.90056]
[1643768659320,0.39168262,2776.2,2775.9,0.1801]
[1643768659519,0.39168262,2776.2,2775.8,0.90056]
[1643768659918,1.16296694,2776.2,2775.8,0.90056]
[1643768662860,0.39168262,2776.2,2775.8,0.90056]
[1643768664369,0.39168262,2776.2,2775.8,1.8011]
[1643768664571,0.04279,2777.2,2775.8,4.07992]
[1643768664814,0.04279,2777.5,2776.2,0.90045]
[1643768665021,0.64257891,2777.4,2776.2,0.90045]
[1643768665218,0.68536891,2777.3,2776.3,0.3]
[1643768665421,0.64257891,2777.2,2776.3,0.6122]
[1643768665626,0.36268761,2776.7,2776.4,0.1799]
[1643768666221,0.04279,2777.8,2776.4,0.1799]
[1643768666422,0.64523042,2777.7,2776.5,5.0489]
[1643768666620,0.04279,2777.6,2776.5,5.0489]
[1643768666919,0.64523042,2777.5,2776.5,5.0489]
[1643768667325,0.33645971,2776.6,2776.5,5.0489]
[1643768667526,2.15687919,2777.3,2776.5,5.0489]
[1643768667724,0.69538472,2777.2,2776.1,4.7552]
[1643768667928,2.76849151,2777.1,2776.1,4.7552]
[1643768668132,0.65259472,2777.0,2776.2,0.84805816]
[1643768668556,0.39190157,2776.3,2776.2,0.84805816]
[1643768668959,0.72930641,2776.7,2776.2,0.84805816]
[1643768669159,0.6545423,2776.6,2776.2,0.84805816]
[1643768669365,0.6545423,2776.6,2776.2,1.74850816]
[1643768669563,0.04279,2777.2,2776.3,0.84805816]
[1643768669761,0.89858852,2777.6,2776.3,0.84805816]
[1643768669762,0.6471228,2777.1,2776.3,0.84805816]
[1643768669962,0.32713959,2776.5,2776.3,0.84805816]
[1643768670263,0.32713959,2776.5,2776.2,0.90045]
[1643768670462,0.32713959,2776.5,2776.3,0.85512708]
[1643768670669,0.32713959,2776.5,2776.1,0.1799]
[1643768670864,0.32713959,2776.5,2776.2,0.85513535]
[1643768671869,0.64742959,2776.4,2776.1,0.1799]
[1643768673714,0.64742959,2776.4,2775.8,0.90059]
[1643768673715,0.43164554,2775.9,2775.8,0.90059]
[1643768673914,0.43164554,2775.9,2775.8,4.65623838]
[1643768674114,0.43164554,2775.9,2775.8,1.75623838]
[1643768675119,0.43164554,2775.9,2775.8,1.93633838]
[1643768676958,0.68203621,2776.6,2775.8,1.93633838]
[1643768677160,0.65514151,2776.5,2775.9,0.85564838]
[1643768677370,0.65514151,2776.5,2776.0,0.85564838]
[1643768677565,0.65514151,2776.5,2776.1,0.85564838]
[1643768677769,0.65514151,2776.5,2776.2,0.85564838]
[1643768677964,0.65514151,2776.5,2775.8,1.38069]
[1643768678366,0.65514151,2776.5,2775.9,0.84383591]
[1643768678766,0.73796919,2776.1,2775.9,0.84383591]
[1643768679567,0.71572589,2777.0,2775.9,0.84383591]
[1643768679810,0.3855582,2776.8,2775.9,0.84383591]
[1643768680014,0.69788463,2776.7,2775.9,0.84383591]
[1643768680915,0.65509463,2776.6,2775.9,0.84383591]
[1643768681121,0.76706463,2776.1,2775.9,0.84383591]
[1643768681315,0.38110317,2776.0,2775.9,0.84383591]
[1643768682724,0.04279,2776.8,2776.0,0.90049]
[1643768682920,1.95202916,2777.6,2776.1,2.64458591]
[1643768682921,0.65523593,2776.7,2776.1,2.64458591]
[1643768683122,0.04279,2777.3,2776.2,1.54773591]
[1643768683321,0.65533541,2777.2,2776.3,0.84383591]
[1643768683769,0.43142266,2777.1,2776.3,1.14383591]
[1643768683961,0.8155502,2776.7,2776.4,1.74420591]
[1643768684161,0.36541367,2776.6,2776.5,0.84383591]
[1643768684760,1.02484234,2776.6,2776.5,0.84383591]
[1643768684965,0.36541367,2776.6,2776.5,2.92322984]
[1643768685164,0.36541367,2776.6,2776.5,0.84383591]
[1643768686568,0.36541367,2776.6,2776.3,0.84383591]
[1643768686967,0.36541367,2776.6,2776.3,1.14383591]
[1643768687415,0.36541367,2776.6,2776.4,0.84383591]
[1643768687616,0.41492305,2776.7,2776.4,0.84383591]
[1643768687915,0.41492305,2776.7,2776.5,0.84383591]
[1643768688116,0.41492305,2776.7,2776.2,1.0039]
[1643768688317,0.41492305,2776.7,2776.3,0.83441587]
[1643768688518,1.35336182,2776.6,2776.3,0.83441587]
[1643768688719,0.6851813,2776.6,2776.3,0.83441587]
[1643768689221,0.6851813,2776.6,2776.2,0.4799]
[1643768689222,0.67669731,2776.5,2776.2,0.1799]
[1643768689419,0.67669731,2776.5,2775.8,1.3271]
[1643768689620,0.67669731,2776.5,2775.9,0.84181622]
[1643768689621,0.71948731,2776.5,2775.9,0.84181622]
[1643768689923,0.67669731,2776.4,2776.0,0.84181622]
[1643768690123,0.67669731,2776.3,2775.7,0.84181622]
[1643768690326,0.04279,2776.5,2775.8,2.84202365]
[1643768690525,3.6505,2777.4,2775.9,0.84202365]
[1643768690526,0.66150596,2776.4,2775.9,0.84202365]
[1643768690723,0.67293589,2777.1,2775.9,0.84202365]
[1643768690724,0.04279,2777.0,2775.9,0.84202365]
[1643768690924,0.66163573,2776.9,2775.9,0.84202365]
[1643768691157,0.04279,2776.8,2775.9,0.84202365]
[1643768691363,0.31836486,2776.5,2776.0,2.0]
[1643768691568,0.31836486,2776.5,2776.1,3.54326365]
[1643768691758,0.31836486,2776.5,2776.2,0.84202365]
[1643768692562,0.04279,2777.1,2776.2,0.84202365]
[1643768692765,0.66178997,2777.0,2776.4,0.90033]
[1643768693066,0.66178997,2776.9,2776.5,0.84202365]
[1643768693260,0.66178997,2776.8,2776.5,1.14202365]
[1643768693462,0.04277,2777.4,2776.5,1.14202365]
[1643768693463,0.04277,2777.4,2776.6,0.84202365]
[1643768693660,0.39440458,2776.7,2776.6,0.84202365]
[1643768694261,0.39440458,2776.7,2776.4,1.80064]
[1643768694262,0.39440458,2776.7,2776.5,0.84202365]
[1643768694563,0.39440458,2776.7,2776.6,0.84202365]
[1643768694811,1.07204807,2776.7,2776.6,0.84202365]
[1643768696018,0.39440458,2776.7,2776.6,0.84202365]
[1643768696219,1.07180518,2776.7,2776.6,0.84202365]
[1643768696417,0.39440458,2776.7,2776.6,0.84202365]
[1643768696822,1.07191124,2776.7,2776.6,0.84202365]
[1643768697219,0.67750666,2776.7,2776.6,0.84202365]
[1643768697620,0.67750666,2776.9,2776.6,0.84202365]
[1643768697824,0.67750666,2776.8,2776.7,0.84202365]
[1643768698321,1.01003904,2776.8,2776.7,0.84202365]
[1643768698774,1.01003904,2776.8,2776.2,0.1799]
[1643768698775,1.31003904,2776.8,2776.2,0.1799]
[1643768698972,1.31003904,2776.8,2776.1,5.4388]
[1643768698973,0.04281,2776.7,2776.1,5.4388]
[1643768699769,0.43013772,2776.2,2776.1,5.4388]
[1643768699975,0.43013772,2776.2,2776.0,0.90052]
[1643768700375,0.33013772,2776.2,2776.0,0.90052]
[1643768700675,0.33013772,2776.2,2775.9,0.90057]
[1643768700978,0.33013772,2776.2,2775.7,0.1801]
[1643768701176,0.71084757,2776.5,2775.6,7.03133635]
[1643768701177,0.04275,2776.4,2775.6,5.2312]
[1643768702311,0.04275,2776.4,2776.0,0.31987176]
[1643768702909,0.04272,2776.7,2776.0,0.31987176]
[1643768703111,0.0427,2776.9,2776.1,2.06214915]
[1643768703310,0.37775696,2776.7,2776.1,2.06214915]
[1643768703812,0.71570589,2777.1,2776.1,2.06214915]
[1643768704010,1.01570589,2777.1,2776.0,4.13969934]
[1643768704610,0.73125729,2776.5,2776.0,2.12095176]
[1643768704810,0.68125729,2776.5,2776.0,2.12095176]
[1643768705219,0.68125729,2776.5,2775.8,0.1799]
[1643768705220,0.98125729,2776.5,2775.8,0.1799]
[1643768705417,1.04284999,2776.4,2775.5,0.1801]
[1643768705618,1.04284999,2776.4,2775.4,7.1559]
[1643768705619,1.71578588,2776.4,2775.4,7.1559]
[1643768705818,0.67293589,2776.3,2775.5,2.0]
[1643768706068,0.67293589,2776.3,2775.4,7.1559]
[1643768706069,0.04292,2776.2,2775.6,2.0]
[1643768706267,0.04292,2776.2,2775.4,7.82153635]
[1643768706268,0.04285,2776.5,2775.8,0.01235806]
[1643768706466,0.41264705,2776.6,2775.8,0.01235806]
[1643768707265,0.88817736,2776.3,2775.8,0.01235806]
[1643768707464,0.88817736,2776.3,2775.7,1.48738111]
[1643768707664,0.4125516,2776.3,2775.7,1.48738111]
[1643768708070,0.34590861,2776.2,2775.7,1.48738111]
[1643768708468,0.4125516,2776.3,2775.7,1.48738111]
[1643768709668,0.83438493,2776.3,2775.7,0.1801]
[1643768710117,0.83438493,2776.3,2775.5,0.1801]
[1643768710717,0.83438493,2776.3,2775.8,0.42221848]
[1643768710920,0.83438493,2776.3,2775.4,10.93847]
[1643768711718,0.83438493,2776.3,2775.4,9.13731]
[1643768711918,0.83438493,2776.3,2775.4,7.7607716]
[1643768712125,0.04293,2776.4,2775.9,0.39149588]
[1643768712322,0.04306,2776.6,2775.9,0.39149588]
[1643768712523,0.99999999,2776.5,2775.6,0.1801]
[1643768712727,0.67293589,2776.3,2775.4,7.1559]
[1643768712925,0.04277,2776.2,2775.4,7.1559]
[1643768713123,0.77325689,2775.9,2775.4,7.1559]
[1643768713570,0.41786105,2775.5,2775.4,7.1559]
[1643768713769,0.41786105,2775.5,2775.4,7.1059]
[1643768715273,0.71786105,2775.5,2775.4,7.1059]
[1643768715673,0.04279,2775.8,2775.4,7.1059]
[1643768715874,0.34279,2775.8,2775.4,7.1059]
[1643768716073,0.04279,2775.8,2775.4,7.1059]
[1643768717074,0.40608174,2775.7,2775.4,7.1059]
[1643768718122,3.04335999,2775.6,2775.4,7.1059]
[1643768718319,3.0,2775.5,2775.4,7.1059]
[1643768718515,1.34335,2775.5,2775.4,7.1059]
[1643768718715,1.19643702,2775.5,2775.4,7.1059]
[1643768720119,4.20736844,2775.9,2775.4,7.1059]
[1643768720120,0.04333,2775.7,2775.4,7.1059]
[1643768720323,0.77325689,2775.9,2775.5,0.74958086]
[1643768720518,0.77325689,2775.9,2775.0,0.64139863]
[1643768720717,0.42628785,2775.7,2775.1,0.74945488]
[1643768721070,0.76211149,2775.6,2775.2,0.1801]
[1643768721271,0.9409028,2775.2,2774.7,0.1801]
[1643768721478,0.3,2775.6,2774.8,0.74153139]
[1643768721666,0.3,2775.6,2774.9,0.92163139]
[1643768721667,0.76188284,2775.5,2774.9,0.92163139]
[1643768721869,0.76188284,2775.5,2775.0,0.74153139]
[1643768722068,0.72628785,2775.7,2775.0,0.74153139]
[1643768722368,0.72628785,2775.7,2775.1,0.74153139]
[1643768722369,0.76218202,2775.6,2775.1,0.74153139]
[1643768722577,0.76218202,2775.6,2774.9,0.1801]
[1643768722578,1.70598016,2775.6,2774.9,0.1801]
[1643768722772,0.76218202,2775.5,2775.0,0.74083273]
[1643768723169,1.06218202,2775.5,2775.0,0.74083273]
[1643768723369,0.76218202,2775.4,2775.0,0.74083273]
[1643768723569,0.3,2775.5,2775.0,0.74083273]
[1643768723771,0.94379814,2775.6,2775.0,0.74083273]
[1643768723971,0.76173835,2775.5,2774.9,0.1801]
[1643768724169,0.31867955,2775.2,2775.0,0.74049642]
[1643768724370,0.94379814,2775.6,2775.0,0.74049642]
[1643768724815,0.8966277,2775.5,2775.0,0.74049642]
[1643768725226,0.8966277,2775.5,2774.9,0.1801]
[1643768725421,0.37596434,2775.4,2774.9,0.1801]
[1643768725721,0.67596434,2775.4,2774.9,0.1801]
[1643768726721,0.67596434,2775.4,2774.6,0.1801]
[1643768727022,0.89907223,2775.1,2774.7,0.57669147]
[1643768727625,1.9454,2775.7,2774.7,1.47767147]
[1643768727626,0.04433,2775.7,2774.7,1.47767147]
[1643768727833,0.9265702,2775.6,2774.8,0.75679147]
[1643768728026,0.9265702,2775.6,2774.9,0.57669147]
[1643768728226,0.04125,2775.9,2775.0,0.57669147]
[1643768728425,0.9284121,2775.8,2775.1,0.57669147]
[1643768728668,0.9284121,2775.8,2775.2,0.98944238]
[1643768728669,1.07158181,2775.7,2775.2,0.98944238]
[1643768728867,1.07158181,2775.7,2775.2,0.41275091]
[1643768729268,1.07158181,2775.7,2774.7,0.1801]
[1643768729467,1.07158181,2775.7,2774.8,0.57469306]
[1643768729667,1.07158181,2775.7,2775.0,0.90093]
[1643768729871,1.07158181,2775.7,2775.1,0.57469306]
[1643768730071,0.89675956,2775.6,2775.1,0.57469306]
[1643768730271,1.07158181,2775.7,2775.2,0.44313231]
[1643768730868,0.3,2775.8,2775.2,0.44313231]
[1643768730869,0.89691968,2775.6,2775.2,0.44313231]
[1643768731072,0.3,2775.8,2775.2,0.44313231]
[1643768731272,0.89690817,2775.7,2775.2,0.44313231]
[1643768731470,0.33971,2776.0,2775.2,0.44313231]
[1643768731671,0.89709802,2775.9,2775.0,0.90093]
[1643768731971,0.04279,2775.8,2775.1,0.60633273]
[1643768732316,1.06303947,2775.8,2775.1,0.60633273]
[1643768732717,0.37154596,2775.7,2775.2,0.44364367]
[1643768732917,0.37154596,2775.7,2775.3,0.60633273]
[1643768733818,1.06303947,2775.8,2775.3,0.60633273]
[1643768734019,1.02024947,2775.8,2775.3,0.60633273]
[1643768735322,0.92938972,2775.7,2775.0,0.90093]
[1643768735522,0.92938972,2775.7,2775.1,0.57485742]
[1643768737169,1.37750823,2775.7,2775.2,0.37321119]
[1643768737371,0.3,2775.8,2775.2,0.37321119]
[1643768737570,0.92987062,2775.7,2775.2,1.27408119]
[1643768738770,0.92987062,2775.7,2775.3,0.5744524]
[1643768740022,0.92987062,2775.7,2775.0,2.70262]
[1643768740223,0.92987062,2775.7,2775.1,0.5745208]
[1643768741028,0.92987062,2775.7,2775.2,0.5745208]
[1643768741222,0.92987062,2775.7,2774.8,0.1801]
[1643768741423,0.92987062,2775.7,2774.9,0.57484927]
[1643768741625,0.92987062,2775.7,2775.0,0.1801]
[1643768741924,0.92987062,2775.7,2775.1,0.57484927]
[1643768742127,0.70959136,2775.4,2775.2,0.57484927]
[1643768742424,0.70959136,2775.4,2774.9,0.32250263]
[1643768742624,0.70959136,2775.4,2775.0,0.57496946]
[1643768743123,0.68528408,2775.8,2775.0,0.57496946]
[1643768743424,0.35910489,2775.3,2775.0,0.57496946]
[1643768745482,0.65910489,2775.3,2775.0,0.57496946]
[1643768745693,0.3,2775.3,2775.0,0.57496946]
[1643768745885,1.00196735,2775.5,2775.0,0.57496946]
[1643768746087,0.96666254,2775.4,2775.0,0.57496946]
[1643768747831,0.04279,2775.8,2775.0,0.57496946]
[1643768748033,0.00014973,2775.7,2775.0,0.57496946]
[1643768748434,0.00014973,2775.7,2775.0,2.59379791]
[1643768748634,0.00014973,2775.7,2775.4,0.35950243]
[1643768748941,0.00014973,2775.7,2775.0,5.1776]
[1643768749141,0.04277,2776.0,2775.1,1.17955]
[1643768749334,0.04277,2776.4,2775.2,2.10143]
[1643768749634,0.04277,2776.4,2775.2,1.80143]
[1643768749836,0.04277,2776.4,2775.3,0.1801]
[1643768749837,0.71570589,2776.4,2775.3,0.1801]
[1643768750039,0.4277892,2776.2,2775.7,0.33099279]
[1643768750239,0.4277892,2776.2,2775.3,0.1801]
[1643768750240,0.69130935,2776.1,2775.3,1.3184]
[1643768750843,0.04277,2776.3,2775.3,1.3184]
[1643768751270,0.71570589,2776.4,2775.3,1.3184]
[1643768751476,2.09268852,2776.7,2775.3,3.32925669]
[1643768751477,0.67293589,2776.5,2775.3,3.32925669]
[1643768751672,0.04277,2776.4,2775.3,3.32925669]
[1643768751970,0.96570589,2776.4,2775.3,1.3184]
[1643768752172,1.22293589,2776.4,2775.3,1.3184]
[1643768752369,1.52293589,2776.4,2775.3,1.3184]
[1643768753271,0.89722832,2776.1,2775.4,0.42960214]
[1643768753871,1.19722832,2776.1,2775.4,0.42960214]
[1643768754075,1.19722832,2776.1,2775.3,1.3184]
[1643768754471,1.24003832,2776.1,2775.3,1.3184]
[1643768755321,1.54003832,2776.1,2775.3,1.3184]
[1643768755522,0.3624906,2775.8,2775.3,1.66953234]
[1643768755721,0.3624906,2775.8,2775.3,0.53123234]
[1643768755922,1.54003832,2776.1,2775.3,0.53123234]
[1643768756123,1.54003832,2776.1,2775.3,0.35113234]
[1643768757322,0.42651819,2775.9,2775.3,0.35113234]
[1643768757726,0.72651819,2775.9,2775.3,0.35113234]
[1643768758324,0.72651819,2775.9,2775.1,4.5225]
[1643768759381,0.72651819,2775.9,2775.4,0.41879238]
[1643768760182,0.72651819,2775.9,2775.1,4.5225]
[1643768760383,1.44224408,2775.9,2775.1,4.3424]
[1643768760583,1.39945408,2775.9,2775.1,4.3424]
[1643768761180,0.72151045,2775.2,2775.0,5.1776]
[1643768761387,0.72151045,2775.2,2774.9,0.1801]
[1643768761587,1.32151045,2775.2,2774.6,0.1801]
[1643768761784,1.32151045,2775.2,2774.5,5.4532]
[1643768761785,1.57151045,2775.2,2774.5,5.6333]
[1643768762183,1.27151045,2775.2,2774.5,5.6333]
[1643768762417,0.38667358,2774.8,2774.5,5.6333]
[1643768762918,0.38667358,2774.8,2774.4,0.1802]
[1643768763719,1.57151045,2775.2,2774.4,0.1802]
[1643768763917,1.57151045,2775.2,2774.4,0.84583635]
[1643768764119,1.57151045,2775.2,2774.5,0.66563635]
[1643768764527,1.57151045,2775.2,2774.4,0.84583635]
[1643768764715,0.73208773,2774.9,2774.4,1.26283293]
[1643768764924,0.73208773,2774.9,2774.4,0.59719658]
[1643768765322,0.73208773,2774.9,2774.4,0.1802]
[1643768766371,0.73208773,2774.9,2774.4,0.84583635]
[1643768767775,0.73208773,2774.9,2774.4,0.6099121]
[1643768767973,0.73208773,2774.9,2774.4,0.1802]
[1643768767974,0.20871447,2774.9,2774.4,0.1802]
[1643768768176,0.20871447,2774.9,2774.5,0.53630983]
[1643768769089,0.3,2775.1,2774.5,0.53630983]
[1643768769280,0.9873223,2775.0,2774.5,0.53630983]
[1643768769690,0.9873223,2774.9,2774.5,0.53630983]
[1643768769922,1.27151045,2775.2,2774.5,0.53630983]
[1643768770126,0.38053404,2775.0,2774.5,0.53630983]
[1643768770324,0.97666499,2774.9,2774.5,0.53630983]
[1643768770527,0.94383,2775.5,2774.7,0.66563635]
[1643768770528,0.04277,2775.5,2774.7,0.66563635]
[1643768770726,0.97655009,2775.4,2774.8,0.66563635]
[1643768770922,0.25,2775.9,2774.9,5.63400983]
[1643768770923,0.97655009,2775.3,2774.9,5.63400983]
[1643768771127,0.04281,2775.8,2775.0,0.53630983]
[1643768771322,0.04281,2775.8,2774.8,0.1801]
[1643768771323,0.97659639,2775.7,2775.1,0.53630983]
[1643768771524,0.44780212,2775.2,2774.8,5.2778]
[1643768771724,0.44780212,2775.2,2774.9,0.53501618]
[1643768772125,0.97665073,2775.1,2774.9,0.53501618]
[1643768772528,1.03275949,2775.4,2774.9,0.53501618]
[1643768772725,0.97664998,2775.3,2774.9,0.53501618]
[1643768774880,1.40616516,2775.3,2774.9,0.53501618]
[1643768775075,0.97664998,2775.2,2774.9,0.53501618]
[1643768776376,0.97664998,2775.1,2774.9,0.53501618]
[1643768776576,0.3,2775.4,2774.9,0.53501618]
[1643768776777,0.98823335,2775.3,2774.9,0.53501618]
[1643768776976,0.3,2775.6,2774.9,0.53501618]
[1643768776977,0.98823335,2775.2,2774.9,0.53501618]
[1643768777177,0.98823335,2775.1,2774.9,0.53501618]
[1643768777425,0.31779341,2775.4,2774.9,0.937647]
[1643768777624,0.98824066,2775.3,2775.0,0.53501618]
[1643768777920,0.98824066,2775.3,2775.1,0.53501618]
[1643768778122,0.98824066,2775.3,2775.2,0.53501618]
[1643768778319,1.73732518,2775.3,2775.2,0.53501618]
[1643768781074,2.03732518,2775.3,2774.8,5.0977]
[1643768781272,1.28824066,2775.2,2774.9,0.52332669]
[1643768781475,0.98824066,2775.1,2774.9,0.52332669]
[1643768782073,0.25,2775.3,2775.0,0.52332669]
[1643768782274,0.98841032,2775.2,2775.1,0.52332669]
[1643768785721,1.28841032,2775.2,2775.1,0.52332669]
[1643768786125,1.58841032,2775.2,2775.1,0.52332669]
[1643768787734,0.98841032,2775.2,2775.1,0.52332669]
[1643768788225,0.25,2775.3,2775.1,0.52332669]
[1643768788422,0.25,2775.3,2774.7,5.2123]
[1643768788423,0.25,2775.3,2775.2,0.52332669]
[1643768788671,1.002471,2775.3,2775.2,0.52332669]
[1643768789271,1.74983323,2775.3,2775.2,0.52332669]
[1643768789674,1.74983323,2775.3,2775.2,0.52241838]
[1643768789878,1.74983323,2775.3,2774.7,5.2123]
[1643768789879,2.04983323,2775.3,2774.7,5.2123]
[1643768790078,0.41263718,2774.9,2774.7,5.2123]
[1643768790680,0.41263718,2774.9,2774.6,0.1801]
[1643768791079,0.41263718,2774.9,2774.4,0.1801]
[1643768793317,1.04736223,2775.3,2774.4,0.1801]
[1643768793917,2.84965223,2775.3,2774.4,0.1801]
[1643768794317,0.3,2775.2,2774.4,0.1801]
[1643768795123,0.34218834,2774.7,2774.4,0.1801]
[1643768796568,0.34218834,2774.7,2774.3,0.1802]
[1643768798973,0.34218834,2774.7,2774.2,5.95983635]
[1643768799572,0.34218834,2774.7,2774.3,0.66563635]
[1643768799821,0.34218834,2774.7,2774.2,5.95983635]
[1643768800625,0.34218834,2774.7,2774.3,0.66563635]
[1643768801024,0.34218834,2774.7,2774.2,5.95983635]
[1643768801228,0.34218834,2774.7,2774.2,5.77963635]
[1643768801625,0.64218834,2774.7,2774.2,5.77963635]
[1643768802425,0.64218834,2774.7,2774.2,5.114]
[1643768802826,0.34218834,2774.7,2774.2,5.114]
[1643768803031,0.34218834,2774.7,2774.3,0.66563635]
[1643768803670,0.34218834,2774.7,2774.4,0.66563635]
[1643768804876,0.34218834,2774.7,2774.3,0.66563635]
[1643768807177,0.04279,2775.1,2774.2,5.77963635]
[1643768807430,0.04279,2775.1,2774.3,0.66563635]
[1643768807634,0.34279,2775.1,2774.3,0.66563635]
[1643768808029,0.34279,2775.1,2774.4,0.66563635]
[1643768808429,0.42771718,2774.8,2774.3,0.66563635]
[1643768808841,0.98499081,2775.0,2774.3,0.66563635]
[1643768809228,0.98499081,2775.0,2774.4,0.66563635]
[1643768809833,1.05611406,2774.9,2774.4,0.66563635]
[1643768810035,1.05610949,2774.8,2774.4,0.66563635]
[1643768810235,0.32441425,2774.9,2774.3,0.45915182]
[1643768810434,0.7195,2774.8,2774.4,0.45915182]
[1643768810736,0.7195,2774.8,2774.5,0.45915182]
[1643768810936,1.07410223,2774.7,2774.6,0.45915182]